Cogmind - Beta 13 @@@ ROGUE MODE // 2024.06.20 @ 19:35:51 Player: RD-BNK(r) Result: Destroyed by HJ-T9D(R) with Subdweller Laser Performance ------------- Evolutions (0) 0 Regions Visited (2) 400 Robots Destroyed (37) 185 Value Destroyed (751) 751 Prototype IDs (0) 0 Alien Tech Used (0) 0 Bonus (0) 0 TOTAL SCORE: 1336 Bonus ------- None Cogmind --------- Core Integrity 0/250 Matter 300/300 Energy 96/100 System Corruption 2% Temperature Cool (8) Movement Treading (340) Ox2 Location -10/Subcaves Parts ------- > --- POWER (1) -------- (None) > --- PROPULSION (2) --- Light Treads Spiked Treads > --- UTILITY (2) ------ Huge Storage Unit Seismic Detector > --- WEAPON (2) ------- Light Assault Rifle Maul > --- INVENTORY (25) --- Light Ion Engine Light Treads Armored Wheel Armored Wheel Armored Wheel Medium Storage Unit Weight Redist. System Structural Scanner ECM Suite Light Armor Plating Hacking Suite Makeshift Hacking Suite Light Assault Rifle Light Assault Rifle Light Assault Rifle Light Assault Rifle Light Assault Rifle Light Cannon Light Cannon Light Cannon Datajack Multitool Maul Peak State ------------ > --- POWER ------------ Ion Engine > --- PROPULSION ------- Armored Wheel Armored Wheel > --- UTILITY ---------- Huge Storage Unit Seismic Detector > --- WEAPON ----------- Light Cannon Maul > --- INVENTORY -------- Light Ion Engine Light Treads Light Treads Light Treads Spiked Treads Wheel Armored Wheel Armored Wheel Medium Storage Unit Weight Redist. System Structural Scanner ECM Suite Light Armor Plating Hacking Suite Light Assault Rifle Light Assault Rifle Light Assault Rifle Light Assault Rifle Light Assault Rifle Light Assault Rifle Light Cannon Light Cannon Light Cannon Datajack Maul [Rating: 13] Favorites ----------- Power Light Ion Engine Engine Light Ion Engine Propulsion Armored Wheel Treads Spiked Treads Leg Aluminum Leg Wheel Armored Wheel Utility Seismic Detector Device Seismic Detector Storage Huge Storage Unit Weapon Light Assault Rifle Ballistic Gun Light Assault Rifle Ballistic Cannon Light Cannon Impact Weapon Maul Build | -11 -10 -10 ------- Run | Yrd Mat Sub Slots Evolved . | . . . Power . | . . . Propulsion . | . . . Utility . | . . . Weapon . | . . . Parts Attached 27 | 4 8 15 Power 1 | . 1 . Engine 1 | . 1 . Core . | . . . Reactor . | . . . Propulsion 8 | 2 2 4 Treads 6 | 2 . 4 Leg . | . . . Wheel 2 | . 2 . Hover . | . . . Flight . | . . . Utility 2 | 1 1 . Device 1 | 1 . . Storage 1 | . 1 . Processor . | . . . Hackware . | . . . Protection . | . . . Artifact . | . . . Weapon 16 | 1 4 11 Energy Gun . | . . . Energy Cannon . | . . . Ballistic Gun 6 | 1 1 4 Ballistic Cannon 5 | . 2 3 Launcher . | . . . Special Weapon . | . . . Impact Weapon 5 | . 1 4 Slashing Weapon . | . . . Piercing Weapon . | . . . Special Melee Weapon . | . . . Unidentified Prototypes . | . . . Parts Lost 3 | . . 3 Power 1 | . . 1 Propulsion 2 | . . 2 Utility . | . . . Weapon . | . . . Highest Loss Streak 1 | . . 1 To Critical Strikes . | . . . Average Slot Usage (%) 95 | . 99 91 Engine 9 | . 14 6 Treads 14 | . 3 21 Wheel 13 | . 24 5 Device 14 | . 14 14 Storage 14 | . 14 14 Ballistic Gun 15 | . 27 7 Ballistic Cannon 7 | . . 12 Impact Weapon 5 | . . 8 Naked Turns . | . . . Heaviest Build 92 | 11 92 92 Greatest Support 40 | 40 40 40 Greatest Overweight (x) 4 | . 3 4 Average Overweight (x) 2 | . 2 2 Largest Inventory Capacity 25 | 8 25 25 Average Capacity 23 | 8 22 25 Most Carried 25 | 6 24 25 Average Carried 21 | 4 17 24 Final Capacity 25 | 8 25 25 Final Carried 24 | 4 24 23 Class Distribution -------------------- 100% | Mutant Dominant Class ---------------- Mutant | -10/Materials Mutant | -10/Subcaves Resources | -11 -10 -10 ----------- Run | Yrd Mat Sub Matter Collected 914 | 272 221 421 Remotely . | . . . Salvage Created 1039 | 122 617 300 Parts 75 | 7 52 16 Haulers Intercepted 2 | . 2 . Recyclers Shooed 3 | 1 2 . Parts Field Recycled . | . . . Retrieved Matter . | . . . Parts Self-Destructed 5 | . . 5 Prevented . | . . . Kills | -11 -10 -10 ------- Run | Yrd Mat Sub Combat Hostiles Destroyed 23 | . 13 10 Melee 3 | . . 3 Guns 13 | . 13 . Cannons 4 | . . 4 Classes Destroyed 11 | 2 7 2 Worker 1 | . 1 . Builder 3 | . 3 . Tunneler 3 | 2 1 . Hauler 2 | . 2 . Recycler 2 | 1 1 . Operator 2 | . 2 . Watcher 1 | . 1 . Swarmer 8 | . 8 . Grunt 5 | . 5 . Artisan 2 | . . 2 Subdweller 10 | . . 10 Best Kill Streak 5 | 1 5 2 Combat Bots Only 5 | . 5 2 Max Kills in Single Turn 2 | 1 2 1 Gunslinging 1 | . 1 . Exploded . | . . . Melee 1 | . . 1 Uniques/NPCs Destroyed . | . . . Combat | -11 -10 -10 -------- Run | Yrd Mat Sub Hostile Shots Fired 127 | . 48 79 Missed 32 | . 13 19 Damage Taken 1646 | . 358 1288 Core 259 | . 39 220 Absorbed by Shields . | . . . Regen/Repaired (Parts) 55 | . 55 . Core Remaining (%) 100 | 100 . . Volleys Fired 123 | 16 75 32 Largest 2 | 2 2 2 Hottest 70 | 40 40 70 Shots Fired 245 | 32 148 65 Gun 198 | 32 148 18 Cannon 47 | . . 47 Launcher . | . . . Special . | . . . Kinetic 245 | 32 148 65 Thermal . | . . . Explosive . | . . . Electromagnetic . | . . . Robot Hit Streak 27 | 4 14 27 Robot Miss Streak 5 | 1 3 5 Penetration Max . | . . . Secondary Targets 3 | . 3 . Max Gunslinging Chain 1 | . 1 . Shots Hit Robots 187 | 21 102 64 Core Hits 66 | 7 46 13 Critical Kills 1 | . 1 . Critical Parts Destroyed 4 | . 1 3 Critical Strikes 9 | . 2 7 Destroy 1 | . 1 . Blast 2 | . . 2 Smash 6 | . 1 5 Melee Attacks 45 | . 3 42 Impact 45 | . 3 42 Slashing . | . . . Piercing . | . . . Sneak Attacks 1 | . 1 . Combat Hostiles . | . . . Follow-up Attacks . | . . . Damage Inflicted 2490 | 176 925 1389 Guns 1115 | 176 845 94 Cannons 602 | . . 602 Explosions . | . . . Melee 773 | . 80 693 Ramming . | . . . Kinetic 1717 | 176 845 696 Thermal . | . . . Explosive . | . . . Electromagnetic . | . . . Impact 773 | . 80 693 Slashing . | . . . Piercing . | . . . Highest Corruption 2 | . 2 2 Average Corruption 2 | . 2 2 Corruption Purged . | . . . Corruption Blocked . | . . . Effects 57 | . 14 43 Message Errors 14 | . 1 13 Matter Fused 10 | . 3 7 Heat Flow Errors 5 | . 2 3 Energy Discharges 8 | . 2 6 Data Loss (minor) 10 | . 4 6 Data Loss (major) 3 | . . 3 Misfires 2 | . . 2 Alerts 3 | . . 3 Weapon Failures 2 | . 2 . Overload Shots . | . . . Overflow Damage 216 | . 80 136 Projectiles . | . . . Explosions . | . . . Melee 216 | . 80 136 Knockbacks 5 | . . 5 Impact 1 | . . 1 Kinetic 4 | . . 4 Secondary . | . . . Self-Inflicted Damage . | . . . Shots . | . . . Rammed . | . . . Targets Rammed . | . . . Kicked . | . . . Crushed . | . . . Highest Temperature 205 | . 203 205 Average Temperature 53 | . 43 89 Received Heat Transfer 309 | . 126 183 Siege Activations . | . . . Robots Corrupted . | . . . Combat Hostiles . | . . . Parts Fried 4 | . 1 3 Impact Corruptions 8 | . 3 5 Robots Melted . | . . . Combat Hostiles . | . . . Parts Melted . | . . . Heat Transferred . | . . . Parts Sabotaged . | . . . Parts Stolen . | . . . Parts Stripped . | . . . Power Chain Reactions . | . . . Alert | -11 -10 -10 ------- Run | Yrd Mat Sub Peak Influence 219 | 15 219 . Initial 9 | . 9 . Average 50 | 7 52 . Maximum Alert Level 1 | . 1 . Low Security (%) 91 | 100 90 . Level 1 8 | . 9 . Level 2 . | . . . Level 3 . | . . . Level 4 . | . . . Level 5 . | . . . High Security . | . . . Max Security . | . . . Squads Dispatched 3 | . 3 . Investigation 1 | . 1 . Extermination . | . . . Reinforcement 2 | . 2 . Assault . | . . . Garrison . | . . . Intercept . | . . . Searches Triggered . | . . . Construction Impeded . | . . . Haulers Reinforced . | . . . Active Scanning Responses . | . . . Cargo Convoy Interrupts . | . . . Stealth | -11 -10 -10 --------- Run | Yrd Mat Sub Distress Signals 2 | . 2 . Communications Jammed . | . . . Distress Signals . | . . . Times Spotted 45 | . 33 12 Peak Tracking Total 3 | . 3 2 Tactical Retreats 1 | . 1 . Traps | -11 -10 -10 ------- Run | Yrd Mat Sub Traps Triggered 3 | . 3 . Indirectly . | . . . Trap Hack Attempts . | . . . Triggered . | . . . Disarmed . | . . . Reprogrammed . | . . . Reused . | . . . Traps Extracted . | . . . Installed . | . . . Triggered . | . . . Machines | -11 -10 -10 ---------- Run | Yrd Mat Sub Machines Disabled . | . . . Max in Single Turn . | . . . Machines Repaired . | . . . Machines Dismantled . | . . . Machines Sabotaged . | . . . Overloaded Fab Kills . | . . . Hacking | -11 -10 -10 --------- Run | Yrd Mat Sub Machines Accessed 5 | . 5 . Terminals 4 | . 4 . Fabricators . | . . . Repair Stations 1 | . 1 . Recycling Units . | . . . Scanalyzers . | . . . Garrison Access . | . . . Total Hacks 9 | . 9 . Successful 4 | . 4 . Failed 5 | . 5 . Catastrophic 1 | . 1 . Database Lockouts . | . . . Manual 6 | . 6 . Terminals 6 | . 6 . Fabricators . | . . . Repair Stations 3 | . 3 . Recycling Units . | . . . Scanalyzers . | . . . Garrison Access . | . . . Terminal Hacks . | . . . Fabricator Hacks . | . . . Repair Station Hacks 2 | . 2 . Scan Component 1 | . 1 . Repair 1 | . 1 . Recycling Unit Hacks . | . . . Scanalyzer . | . . . Garrison Access Hacks . | . . . Unauthorized Hacks 2 | . 2 . Terminals 2 | . 2 . Assimilate 1 | . 1 . Operators 1 | . 1 . Fabricators . | . . . Repair Stations . | . . . Recycling Units . | . . . Scanalyzers . | . . . Garrison Access . | . . . Data Cores Recovered . | . . . Used . | . . . Hacking Detections 4 | . 4 . Full Trace Events . | . . . Feedback Events . | . . . Feedback Blocked . | . . . Robot Schematics Acquired . | . . . Robots Built . | . . . Authchips . | . . . Time . | . . . Total Robot Build Rating . | . . . Part Schematics Acquired . | . . . Parts Built . | . . . Authchips . | . . . Time . | . . . Total Part Build Rating . | . . . Parts Repaired 1 | . 1 . Time 26 | . 26 . Parts Recycled . | . . . Recycled Matter . | . . . Retrieved Matter . | . . . Retrieved Components . | . . . Parts Scanalyzed . | . . . Part Schematics Acquired . | . . . Parts Damaged . | . . . Bothacking | -11 -10 -10 ------------ Run | Yrd Mat Sub Used RIF Installer . | . . . Robots Hacked . | . . . Non-combat . | . . . Combat . | . . . Robot Hacks Applied . | . . . Relay Couplers Released . | . . . Fabnet Peak Effective % . | . . . Robots Rewired . | . . . Allies Hacked . | . . . Hacks Repelled . | . . . Allies | -11 -10 -10 -------- Run | Yrd Mat Sub Total Allies . | . . . Largest Group . | . . . Highest-Rated Group . | . . . Highest-Rated Ally . | . . . Total Orders . | . . . Ally Attacks . | . . . Total Damage . | . . . Kills . | . . . Allies Corrupted . | . . . Allies Melted . | . . . Intel | -11 -10 -10 ------- Run | Yrd Mat Sub Robot Analysis Total . | . . . Derelict Logs Recovered 1 | . . 1 Drone Launches . | . . . Drone Recoveries . | . . . Exploration | -11 -10 -10 ------------- Run | Yrd Mat Sub Turns Passed 4986 | 116 2040 2830 Spaces Moved 1991 | 40 1021 930 Core . | . . . Treads 717 | 40 110 567 Legs . | . . . Wheels 1274 | . 911 363 Hover . | . . . Flight . | . . . Fastest Speed 90 | 160 90 135 Average Speed 199 | 160 136 270 Slowest Speed 560 | 160 160 560 Overloaded Moves . | . . . Propulsion Burnouts . | . . . Robots Hopped . | . . . Cave-ins Triggered . | . . . Exploration Rate (%) 55 | 4 99 64 Regions Visited 2 Branch Regions 1 Pre-discovered Areas . | . . . Known Exits Taken . | . . . Unknown Exits Taken 2 | 1 1 . Scrap Searched 11 | . . 11 Spaces Dug 6 | . 2 4 Terrain Destroyed 6 | . 2 4 Melee 6 | . 2 4 Projectile . | . . . AOE . | . . . Terrain Rammed . | . . . Walls Destroyed . | . . . Machines Disabled . | . . . Actions | -11 -10 -10 --------- Run | Yrd Mat Sub Total 2702 | 66 1536 1100 Wait 479 | 5 400 74 Move 1989 | 39 1020 930 Hop . | . . . Pick Up 28 | . 24 4 Fast Attach 3 | 1 2 . Attach 2 | . . 2 Detach . | . . . Swap 22 | 3 6 13 Drop 11 | 2 6 3 Fire 123 | 16 75 32 Melee 45 | . 3 42 Ram . | . . . Kick . | . . . Crush . | . . . Escape Stasis . | . . . Rewire . | . . . Trap . | . . . Miscellaneous . | . . . Route ------- -11/Scrapyard -10/Materials (discovered 6 exits: [*Mat x3] / [*Min x2] / [*Sub]) -10/Subcaves (discovered 2 exits: [*Mat x2]) History --------- Turn | Location | Event 7 | -11/Scrapyard | Discovered new exit (range 3) 117 | -11/Scrapyard | Entered Materials 309 | -10/Materials | Build established: Mutant 309 | -10/Materials | Discovered new exit (range 14) 488 | -10/Materials | Discovered new exit (range 4) 594 | -10/Materials | Discovered new exit (range 7) 761 | -10/Materials | Discovered new exit (range 7) 1398 | -10/Materials | Discovered new exit (range 15) 1917 | -10/Materials | Repaired Lgt. Assault Rifle 2139 | -10/Materials | Discovered new exit (range 5) 2157 | -10/Materials | Entered Subcaves 2527 | -10/Subcaves | Discovered new exit (range 15) 2947 | -10/Subcaves | Disturbed a concealed Subdweller 3435 | -10/Subcaves | Shifting Twisted Machinery released Sub. Machine Gun 3436 | -10/Subcaves | Shifting Twisted Machinery released Sub. Beam Cannon 3495 | -10/Subcaves | Discovered new exit (range 10) 3516 | -10/Subcaves | Core integrity fell below 50% 3765 | -10/Subcaves | Ambushed by angry Subdweller bent on revenge 4364 | -10/Subcaves | A swath of the cavern ceiling suddenly collapsed 4641 | -10/Subcaves | Core integrity fell below 20% 4703 | -10/Subcaves | Shifting Twisted Machinery released Sub. Monowheel 4709 | -10/Subcaves | Shifting Twisted Machinery released Sub. Beam Cannon 4805 | -10/Subcaves | Learned 4 Materials zone layouts 4913 | -10/Subcaves | Shifting Twisted Machinery released Sub. Power Source 4920 | -10/Subcaves | Shifting Twisted Machinery released Sub. Power Source 4987 | -10/Subcaves | Destroyed by HJ-T9D(R) with Subdweller Laser Last Messages --------------- Sub. Beam Cannon falls loose from the Twisted Machinery. 04723_ System corrupted: Energy discharge (-38). 04775_ System corrupted: IFF burst signal emitted. 04805_ Acquired derelict log, extracted data. Data stored: Materials zone layouts (x4). 04824_ &%TDKNLXS E=7HABQAZP 04865_ System corrupted: Heat flow error (+249). 04872_ Searching scrap... 04872_ Found Scrap Shield. 04872_ Found 16 Matter. 04876_ Searching scrap... 04876_ Found Sub. Shrapnel Launcher. 04876_ Found Mak. Kinetic Plating. 04876_ Found 25 Matter. 04879_ Searching scrap... 04879_ Found Sub. Power Source. 04879_ Found Sub. Shrapnel Launcher. 04879_ Found 30 Matter. Sub. Power Source falls loose from the Twisted Machinery. 04974_ SA-ZUU(R): "WEHOME!" Map ----- +----------------------------------------------------+ | ?????????????????????????????????????????????????? | | ?????????????????????????????????????????????????? | | ?????????????????????????????????????????????????? | | ?????????????????????????????????????????????????? | | ?????????????????????????????????????????????????? | | ?????????????????????????????????????????????????? | | ?????????????????????????????????????????????????? | | ?????????????????????????????????????????????????? | | ?????????????????????????????????????????????????? | | ?????????????????????????????????????????????????? | | ?????????????????????????????????????????????????? | | ?????????????????????????????????????????????????? | | ?????????????????????????????????????????????????? | | ?????????????????????????????????????????????????? | | ?????????????????????????????????????????????????? | | ??????????????#??????????????????????????????????? | | ????????????"##[?????????????????????????????????? | | ????????? """ *??????????###???????????????????? | | ????????? ?????????""##??????????????????? | | ???????? R #??????## ##?????????????????? | | ???????? #????##" #?????????????????? | | ??????? #?### """""#?????????????????? | | ??????? R ## # *""""#?????????????????? | | ??????? """#?????????????????? | | ???????# ""##????????##??????? | | ???????# #### ## @ # ""##?????## #??????? | | ?????????????????####?#### ##*""#????## #??????? | | ?????????????????????????# ## #???## #??????? | | ?????????????????????????# ###??## #??????? | | ?????????????????????????### ####### ##??????? | | ???????????????????????????## ] ###???????? | | ????????????????????????????# ####! ##?????????? | | ????????????????????????????# ##""*#%##??????????? | | ?????????????????????????#### #"!]"# #???????????? | | ??????????????????????# ## #"%%"# #???????????? | | ??????????????????????# ##""## #???????????? | | ??????????????????????# #### #???????????? | | ??????????????????????## ### ####?????????? | | ???????????????????????## #?# # # ##????????? | | ????????????????????????##??# ##???????? | | ????????????????????????????## #???????? | | ?????????????????????????????######"# #???????? | | ??????????????????????????????????#### ##???????? | | ????????????????????????????????????##" ##???????? | | ???????????????????????????????????##" "#???????? | | ???????????????????????????????????# "#???????? | | ??????????????????????????????####?#"] ##???????? | | ?????????????????????#####????#"" ##"" ##???????? | | ?????????????????????# ##??? "" "" "#???????? | | ?????????????????????# ##??#" ## =" ##???????? | +----------------------------------------------------+ Best States ------------- Heat Dissipation 25 Energy Generation 10 Energy Capacity 250 Matter Stores 300 Matter Capacity 300 Sight Range 16 Terrain Scan Density 10 Evasion (%) 42 Recoil Reduction 2 Item Schematics ----------------- None Robot Schematics ------------------ None Fabricated ------------ Nothing Alien Tech Used ----------------- None Achievements -------------- None Challenges ------------ None Game ------ Seed ImprovedGravityTreads Manual? 0 Play Time 00:27:01 Cumulative 136.6 hours Start 2024.06.20 @ 19:03:34 End 2024.06.20 @ 19:35:51 Sessions 1 Manual Loads 0 Difficulty Rogue Special Mode None Game No. 143 Rogue 143 Adventurer 0 Explorer 0 Win Type - Total 5 Types 3/0/2/0/0/0/0/0/0 Lore% 65 Gallery% 57 Achievement% 54 Wizard Run 0 Options --------- Layout 0 ASCII 0 Keyboard 0 Movement Mouse Keybinds 0 Fullscreen 2 Font 18/X11Bold Map View 76x50 Zoom Use 0% Tactical HUD 1 Map Filters NONE Filters NONE Steam 1 RUN: 8e6164ae-1599-49f8-a718-1a1424e675dc